bitfinex-derivatives/quotes_SOLF0:USTF0_20250426
["timestamp","ask_amount","ask_price","bid_price","bid_amount"]
[1745677174650,6.7362,148.41,148.37,6.7374]
[1745677175049,12.81139616,148.43,148.37,6.7374]
[1745677175248,6.7364,148.4,148.36,31.178]
[1745677177450,6.7368,148.39,148.36,31.178]
[1745677177653,12.81139616,148.43,148.37,6.7376]
[1745677179353,6.7364,148.4,148.37,6.7376]
[1745677179856,6.7364,148.4,148.36,31.178]
[1745677180055,6.7364,148.4,148.36,24.44]
[1745677180657,6.7364,148.4,148.37,6.7374]
[1745677181050,12.81139616,148.43,148.36,24.44]
[1745677181254,12.81139616,148.45,148.39,6.7364]
[1745677181759,6.7357,148.42,148.39,6.7364]
[1745677182760,6.7351,148.43,148.39,6.7364]
[1745677183060,12.81139616,148.45,148.39,6.7364]
[1745677183559,6.7357,148.42,148.39,6.7364]
[1745677185260,6.7359,148.41,148.38,6.7372]
[1745677185962,6.7356,148.42,148.38,6.7372]
[1745677187564,6.7356,148.42,148.39,6.7366]
[1745677187762,6.7352,148.43,148.39,6.7366]
[1745677187966,12.81139616,148.45,148.36,37.25139616]
[1745677188166,12.81139616,148.45,148.4,6.736]
[1745677188464,2.0687,148.46,148.4,31.176]
[1745677188666,6.7349,148.44,148.4,31.176]
[1745677188867,2.0687,148.46,148.4,31.176]
[1745677189068,2.0687,148.46,148.4,24.44]
[1745677189673,8.19377032,148.43,148.4,24.44]
[1745677189867,14.92917032,148.43,148.4,24.44]
[1745677190368,14.92917032,148.43,148.4,31.1763]
[1745677192473,6.7355,148.42,148.4,24.44]
[1745677192870,14.92927032,148.42,148.4,24.44]
[1745677197871,14.92887032,148.43,148.4,31.1763]
[1745677198978,6.7355,148.42,148.4,24.44]
[1745677200168,14.92927032,148.42,148.4,24.44]
[1745677200571,8.19377032,148.41,148.37,24.44]
[1745677200875,8.19377032,148.38,148.34,24.44]
[1745677201072,14.93127032,148.38,148.34,24.44]
[1745677201269,8.19377032,148.39,148.35,8.19377032]
[1745677202274,14.93087032,148.39,148.36,6.7381]
[1745677202474,8.19377032,148.39,148.35,8.19377032]
[1745677202974,26.5087,148.46,148.38,8.19377032]
[1745677203180,26.5087,148.46,148.39,8.19377032]
[1745677203369,6.7353,148.43,148.41,8.19377032]
[1745677203674,39.31147656,148.46,148.38,24.44]
[1745677203970,6.7355,148.42,148.39,6.7366]
[1745677204475,12.80277656,148.44,148.38,24.44]
[1745677204978,12.80277656,148.4,148.35,24.44]
[1745677205274,12.80277656,148.38,148.32,24.44]
[1745677205774,6.7385,148.36,148.32,31.1799]
[1745677205975,6.7385,148.36,148.32,24.44]
[1745677206175,18.83687656,148.4,148.32,24.44]
[1745677206674,6.7382,148.36,148.33,6.7392]
[1745677206977,12.80277656,148.38,148.32,24.44]
[1745677207470,6.739,148.35,148.32,24.44]
[1745677208479,6.739,148.35,148.32,31.1799]
[1745677209282,6.739,148.35,148.32,24.44]
[1745677209481,6.7393,148.34,148.32,24.44]
[1745677211182,6.7395,148.33,148.32,24.44]
[1745677212282,6.7392,148.34,148.32,24.44]
[1745677212481,12.80277656,148.36,148.32,24.44]
[1745677213785,12.80277656,148.38,148.32,24.44]
[1745677214386,6.7393,148.34,148.32,24.44]
[1745677214886,6.7395,148.33,148.32,24.44]
[1745677215288,12.80277656,148.34,148.28,24.46]
[1745677215684,6.7403,148.32,148.28,31.2015]
[1745677216789,6.7403,148.32,148.29,6.7411]
[1745677216990,12.80277656,148.36,148.28,37.26277656]
[1745677217990,6.7402,148.32,148.29,6.7411]
[1745677218289,12.80277656,148.34,148.28,24.46]
[1745677218490,12.80277656,148.34,148.28,31.2015]
[1745677220194,6.7404,148.32,148.29,6.7412]
[1745677223092,24.46,148.37,148.3,12.80277656]
[1745677223495,6.7387,148.35,148.31,6.7401]
[1745677223701,6.7387,148.35,148.3,12.80277656]
[1745677223892,43.29687656,148.4,148.3,12.80277656]
[1745677224595,6.7381,148.37,148.33,6.7392]
[1745677224792,43.29687656,148.4,148.33,24.46]
[1745677224989,12.80277656,148.38,148.33,24.46]
[1745677225994,6.7391,148.34,148.33,24.46]
[1745677227905,6.74,148.33,148.3,24.46]
[1745677228201,12.80277656,148.36,148.3,24.46]
[1745677228498,6.7404,148.31,148.3,24.46]
[1745677229801,6.7402,148.32,148.3,24.46]
[1745677230498,6.7404,148.31,148.3,24.46]
[1745677234303,8.20564618,148.32,148.27,32.66564618]
[1745677234503,8.20564618,148.32,148.28,8.20564618]
[1745677234904,8.20564618,148.32,148.27,32.66564618]
[1745677235105,8.20564618,148.3,148.27,24.46]
[1745677235406,6.7418,148.28,148.27,24.46]
[1745677237609,6.7415,148.29,148.27,24.46]
[1745677239209,6.7418,148.28,148.27,24.46]
[1745677248508,8.20564618,148.31,148.27,32.66564618]
[1745677248714,8.20564618,148.32,148.28,8.20564618]
[1745677249117,6.7405,148.31,148.28,8.20564618]
[1745677249515,6.741,148.3,148.28,8.20564618]
[1745677249813,8.20564618,148.33,148.29,8.20564618]
[1745677250417,8.20564618,148.32,148.28,8.20564618]
[1745677250819,6.7405,148.31,148.28,8.20564618]
[1745677251419,6.7409,148.3,148.28,8.20564618]
[1745677253621,6.7406,148.31,148.28,14.94744618]
[1745677253919,8.20564618,148.33,148.29,8.20564618]
[1745677254122,6.7404,148.31,148.29,14.94694618]
[1745677254321,6.7404,148.31,148.29,8.20564618]
[1745677254724,6.7409,148.3,148.28,8.20564618]
[1745677255922,6.7407,148.31,148.28,8.20564618]
[1745677256226,8.20564618,148.32,148.28,14.94744618]
[1745677256424,8.20564618,148.32,148.28,8.20564618]
[1745677256919,6.7409,148.3,148.28,8.20564618]
[1745677257528,6.7414,148.29,148.27,32.66564618]
[1745677257723,8.20564618,148.31,148.27,24.46]
[1745677258022,6.7418,148.28,148.27,24.46]
[1745677258327,8.20564618,148.32,148.27,32.66564618]
[1745677258526,6.7412,148.3,148.27,39.40774618]
[1745677259132,24.46,148.36,148.29,8.20564618]
[1745677259330,32.66564618,148.36,148.31,8.20564618]
[1745677259524,8.20564618,148.36,148.31,32.66564618]
[1745677260030,6.7394,148.34,148.31,39.40604618]
[1745677260227,6.7394,148.34,148.31,32.66564618]
[1745677260433,8.20564618,148.36,148.31,32.66564618]
[1745677261131,8.20564618,148.35,148.31,24.46]
[1745677261333,8.20564618,148.32,148.28,24.46]
[1745677261634,6.7413,148.3,148.28,24.46]
[1745677261834,8.20564618,148.31,148.28,24.46]
[1745677262331,8.20564618,148.32,148.28,32.66564618]
[1745677262525,8.20564618,148.31,148.28,24.46]
[1745677262732,8.20564618,148.3,148.28,24.46]
[1745677264035,8.20564618,148.29,148.18,2.1017]
[1745677264237,8.20564618,148.25,148.22,509.58]
[1745677264432,8.20564618,148.25,148.22,24.46]
[1745677264629,6.744,148.24,148.22,24.46]
[1745677264937,8.20564618,148.25,148.22,24.46]
[1745677265136,6.7433,148.25,148.22,24.46]
[1745677265640,6.7433,148.25,148.22,32.66564618]
[1745677265938,10.14904618,148.28,148.24,8.20564618]
[1745677266239,6.7417,148.29,148.26,8.20564618]
[1745677266439,6.7417,148.29,148.27,8.20564618]
[1745677267736,6.741,148.3,148.27,8.20564618]
[1745677268435,14.94624618,148.31,148.27,8.20564618]
[1745677268742,6.7406,148.31,148.29,8.20564618]
[1745677269344,6.7409,148.3,148.29,8.20564618]
[1745677269543,6.7409,148.3,148.28,8.20564618]
[1745677269739,8.20564618,148.32,148.28,8.20564618]
[1745677269934,8.20564618,148.34,148.29,8.20564618]
[1745677270140,184.17363371,148.4,148.19,4.1788]
[1745677270141,8.20564618,148.37,148.33,8.20564618]
[1745677270639,8.20564618,148.36,148.31,8.20564618]
[1745677271135,6.7396,148.33,148.31,8.20564618]
[1745677271539,8.20564618,148.35,148.3,32.66564618]
[1745677271736,24.46,148.38,148.3,32.66564618]
[1745677271944,8.20564618,148.36,148.31,8.20564618]
[1745677272141,8.20564618,148.34,148.3,32.66564618]
[1745677272640,8.20564618,148.36,148.32,8.20564618]
[1745677272943,8.20564618,148.38,148.34,8.20564618]
[1745677273142,6.7385,148.36,148.33,8.20564618]
[1745677273444,8.20564618,148.36,148.32,8.20564618]
[1745677273638,6.7389,148.35,148.32,8.20564618]
[1745677274143,6.7383,148.36,148.32,14.94534618]
[1745677274643,6.7383,148.36,148.34,8.20564618]
[1745677276143,8.20564618,148.37,148.3,24.46]
[1745677276345,8.20564618,148.37,148.32,8.20564618]
[1745677276843,6.7394,148.34,148.32,8.20564618]
[1745677277439,8.20564618,148.33,148.3,24.46]
[1745677277645,8.20564618,148.31,148.3,24.46]
[1745677277846,8.20564618,148.31,148.27,32.64564618]
[1745677278546,6.7412,148.3,148.27,32.64564618]
[1745677278741,8.20564618,148.31,148.27,32.64564618]
[1745677279239,8.20564618,148.3,148.27,24.44]
[1745677279446,6.7416,148.29,148.27,24.44]
[1745677279647,12.82592585,148.32,148.27,24.44]
[1745677280144,6.7413,148.3,148.27,24.44]
[1745677280641,6.7426,148.27,148.24,24.46]
[1745677280847,12.82592585,148.3,148.24,24.46]
[1745677281241,6.7424,148.27,148.24,24.46]
[1745677281442,12.82592585,148.3,148.24,24.46]
[1745677281942,6.7432,148.25,148.24,24.46]
[1745677282648,6.7432,148.25,148.21,31.2048]
[1745677282849,12.82592585,148.28,148.21,31.2048]
[1745677283240,12.82592585,148.28,148.21,24.46]
[1745677283445,12.82592585,148.26,148.21,24.46]
[1745677284046,6.7443,148.23,148.21,24.46]
[1745677284246,12.82592585,148.26,148.21,24.46]
[1745677285749,6.7444,148.23,148.21,24.46]
[1745677286150,12.82592585,148.26,148.21,24.46]
[1745677286951,6.7441,148.23,148.21,24.46]
[1745677287947,12.82592585,148.26,148.21,31.2049]
[1745677288755,6.7437,148.24,148.21,24.46]
[1745677289256,6.7433,148.25,148.21,31.2049]
[1745677289454,16.79572585,148.28,148.21,24.46]
[1745677290049,12.82592585,148.26,148.21,24.46]
[1745677290760,6.7445,148.23,148.21,24.46]
[1745677291556,6.7445,148.22,148.21,24.46]
[1745677292253,6.7442,148.23,148.21,24.46]
[1745677293658,12.82592585,148.24,148.18,31.2062]
[1745677293855,12.82592585,148.22,148.18,24.46]
[1745677294557,6.7459,148.19,148.18,24.46]
[1745677294759,12.82592585,148.22,148.15,24.46]
[1745677295157,6.7455,148.2,148.15,24.46]
[1745677295354,12.82592585,148.22,148.15,24.46]
[1745677295551,6.7443,148.23,148.18,6.7459]
[1745677295762,12.82592585,148.26,148.19,24.46]
[1745677296158,6.7436,148.24,148.2,6.7451]
[1745677296358,6.7436,148.24,148.19,24.46]
[1745677297863,6.7436,148.24,148.2,6.7452]
[1745677298163,41.25572585,148.28,148.2,12.82592585]
[1745677298563,37.28592585,148.28,148.2,12.82592585]
[1745677298762,2.0097,148.29,148.21,2.0647]
[1745677299162,6.7421,148.28,148.22,12.82592585]
[1745677299363,12.82592585,148.3,148.23,24.46]
[1745677299559,24.46,148.31,148.24,12.82592585]
[1745677299862,6.7412,148.3,148.26,6.7424]
[1745677300261,6.7411,148.3,148.26,6.7424]
[1745677300665,12.82592585,148.32,148.24,12.82592585]
[1745677301165,12.82592585,148.32,148.25,6.7431]
[1745677301367,6.7416,148.29,148.24,12.82592585]
[1745677301569,12.82592585,148.32,148.24,12.82592585]
[1745677301957,6.7412,148.3,148.24,12.82592585]
[1745677302366,6.7412,148.3,148.26,6.7425]
[1745677302569,12.82592585,148.3,148.23,24.46]
[1745677303460,6.7425,148.27,148.23,31.2038]
[1745677303667,12.82592585,148.3,148.23,24.46]
[1745677303869,12.82592585,148.32,148.23,24.46]
[1745677304160,12.82592585,148.32,148.26,6.7424]
[1745677304361,2.0688,148.33,148.24,12.82592585]
[1745677304559,2.0688,148.33,148.25,24.46]
[1745677304759,6.741,148.3,148.27,6.7421]
[1745677304968,6.741,148.3,148.25,24.46]
[1745677305268,6.741,148.3,148.26,6.7424]
[1745677305471,12.82592585,148.3,148.25,24.46]
[1745677305670,12.82592585,148.28,148.22,24.46]
[1745677307673,12.82592585,148.24,148.18,24.46]
[1745677308069,6.7455,148.2,148.18,24.46]
[1745677309269,12.82592585,148.24,148.18,24.46]
[1745677309976,6.7458,148.2,148.18,24.46]
[1745677310273,12.82592585,148.24,148.18,24.46]
[1745677311572,6.7455,148.2,148.18,24.46]
[1745677311878,12.82592585,148.22,148.18,24.46]
[1745677312872,6.7453,148.21,148.18,24.46]
[1745677313179,12.82592585,148.22,148.18,24.46]
[1745677313975,6.7458,148.2,148.18,24.46]
[1745677314681,6.7451,148.21,148.18,24.46]
[1745677315481,6.7446,148.22,148.18,31.2061]
[1745677315883,6.7446,148.22,148.18,24.46]
[1745677316182,6.7446,148.22,148.18,31.2062]
[1745677316577,6.7454,148.21,148.18,24.46]
[1745677317679,6.7455,148.2,148.18,24.46]
[1745677319075,6.7459,148.19,148.18,24.46]
[1745677319581,6.7456,148.2,148.18,24.46]
[1745677319782,12.82592585,148.22,148.18,24.46]
[1745677321285,6.7454,148.21,148.18,24.46]
[1745677321485,12.82592585,148.22,148.18,24.46]
[1745677323584,6.7454,148.21,148.18,24.46]
[1745677323983,12.82592585,148.24,148.18,24.46]
[1745677324280,14.89922585,148.26,148.18,24.46]
[1745677324476,12.82592585,148.28,148.21,12.82592585]
[1745677324678,12.82592585,148.28,148.22,31.2041]
[1745677325085,6.7431,148.26,148.22,31.2041]
[1745677325287,6.7431,148.26,148.23,6.744]
[1745677325483,12.82592585,148.28,148.22,24.46]
[1745677325884,12.82592585,148.26,148.22,24.46]
[1745677326485,6.7441,148.23,148.22,24.46]
[1745677326683,12.82592585,148.24,148.19,24.46]
[1745677327187,6.7448,148.22,148.19,24.46]
[1745677327386,12.82592585,148.24,148.19,24.46]
[1745677328588,6.745,148.21,148.18,6.7463]
[1745677328786,6.745,148.21,148.18,31.2063]
[1745677329083,6.745,148.21,148.18,24.46]
[1745677330886,12.82592585,148.24,148.18,24.46]
[1745677331087,12.82592585,148.26,148.18,24.46]
[1745677331584,12.82592585,148.28,148.19,12.82592585]
[1745677331781,6.7435,148.25,148.21,6.7447]
[1745677331983,12.82592585,148.28,148.2,2.0388]
[1745677332488,6.7439,148.24,148.2,8.784]
[1745677332789,6.7439,148.24,148.2,2.0388]
[1745677333090,6.7439,148.24,148.2,8.7841]
[1745677334994,6.7441,148.23,148.2,8.7841]
[1745677335187,6.7441,148.23,148.2,2.0388]
[1745677336193,6.7448,148.22,148.2,2.0388]
[1745677337196,6.745,148.21,148.2,2.0388]
[1745677338493,12.82592585,148.26,148.19,1.9916]
[1745677338694,12.82592585,148.24,148.18,24.46]
[1745677339089,6.7459,148.19,148.18,24.46]
[1745677339290,12.82592585,148.22,148.15,2.0665]
[1745677339291,12.82592585,148.22,148.15,24.46]
[1745677340598,6.7466,148.18,148.15,24.46]
[1745677340891,12.82592585,148.22,148.15,31.2076]
[1745677341096,12.82592585,148.22,148.15,24.46]
[1745677341297,6.7458,148.2,148.15,24.46]
[1745677341598,6.7458,148.2,148.16,6.7472]
[1745677341798,6.7462,148.19,148.15,24.46]
[1745677342097,12.82592585,148.22,148.15,24.46]
[1745677343495,6.7462,148.19,148.15,31.2077]
[1745677343697,12.82592585,148.2,148.15,24.46]
[1745677343897,12.82592585,148.22,148.15,24.46]
[1745677344400,6.7461,148.19,148.15,31.2076]
[1745677344601,6.7461,148.19,148.15,24.46]
[1745677344800,6.7461,148.19,148.15,31.2074]
[1745677345000,6.7461,148.19,148.15,24.46]
[1745677345200,6.7456,148.2,148.15,24.46]
[1745677345600,6.7456,148.2,148.16,6.747]
[1745677346101,6.746,148.19,148.15,31.2075]
[1745677346404,12.82592585,148.22,148.15,31.2075]
[1745677346802,6.7466,148.18,148.15,24.46]
[1745677346998,12.82592585,148.22,148.15,24.46]
[1745677347199,6.746,148.19,148.15,31.2074]
[1745677347802,6.746,148.19,148.16,6.7472]
[1745677348202,12.82592585,148.22,148.15,24.46]
[1745677348406,12.82592585,148.22,148.16,6.747]
[1745677348801,4.0023,148.25,148.17,12.82592585]
[1745677349105,2.0884,148.25,148.17,12.82592585]
[1745677349305,12.82592585,148.24,148.18,6.7463]
[1745677349503,12.82592585,148.24,148.18,31.2063]
[1745677349705,24.46,148.26,148.21,8.21675818]
[1745677350007,8.21675818,148.25,148.21,8.21675818]
[1745677350208,8.21675818,148.27,148.22,8.21675818]
[1745677350405,8.21675818,148.26,148.22,8.21675818]
[1745677350602,8.21675818,148.25,148.22,8.21675818]
[1745677350803,6.7443,148.23,148.21,8.21675818]
[1745677351607,6.7443,148.23,148.2,6.7454]
[1745677352202,12.83522019,148.27,148.19,3.9044]
[1745677352403,12.83522019,148.23,148.18,24.46]
[1745677352911,6.7456,148.2,148.18,24.46]
[1745677353709,6.7451,148.21,148.18,24.46]
[1745677354611,6.7455,148.2,148.18,24.46]
[1745677356107,37.35522019,148.25,148.18,24.46]
[1745677356314,24.52,148.25,148.18,37.29522019]
[1745677356613,6.7442,148.23,148.2,6.7451]
[1745677357010,2.0757,148.26,148.18,37.29522019]
[1745677357312,6.7444,148.23,148.19,6.7457]
[1745677357516,2.0757,148.26,148.19,6.7457]
[1745677357810,6.7445,148.23,148.19,6.7457]
[1745677358014,2.0757,148.26,148.18,44.04142019]
[1745677358315,6.7448,148.22,148.18,44.04142019]
[1745677359518,6.7442,148.23,148.18,37.29522019]
[1745677360210,6.7447,148.22,148.19,6.7457]
[1745677363311,12.83522019,148.27,148.2,6.7453]
[1745677364615,6.7439,148.24,148.18,37.29522019]
[1745677364915,6.7439,148.24,148.2,12.83522019]
[1745677365611,6.7439,148.24,148.21,6.7447]
[1745677365816,6.7439,148.24,148.22,24.5]
[1745677367413,6.7441,148.23,148.22,24.5]
[1745677367618,26.5736,148.28,148.22,24.5]
[1745677368019,6.7438,148.24,148.22,24.5]
[1745677369521,6.7441,148.23,148.22,24.5]
[1745677370025,6.7439,148.24,148.22,24.5]
[1745677371626,26.5736,148.28,148.22,24.5]
[1745677371826,14.78132019,148.29,148.22,37.33522019]
[1745677372020,1.9461,148.29,148.22,37.33522019]
[1745677372222,2.0137,148.32,148.26,12.83522019]
[1745677372422,39.40112019,148.35,148.27,24.5]
[1745677372723,6.7407,148.31,148.27,31.242]
[1745677373125,6.7407,148.31,148.27,24.5]
[1745677373326,39.40112019,148.35,148.28,12.83522019]
[1745677373327,26.5659,148.35,148.28,12.83522019]
[1745677373522,2.0659,148.35,148.28,12.83522019]
[1745677373927,6.7392,148.34,148.3,19.57582019]
[1745677374328,6.7387,148.35,148.31,31.2403]
[1745677374628,2.0137,148.37,148.31,24.5]
[1745677374824,12.83522019,148.35,148.31,24.5]
[1745677375229,12.83522019,148.33,148.27,24.5]
[1745677375432,37.33522019,148.35,148.27,24.5]
[1745677375835,6.741,148.3,148.27,24.5]
[1745677376637,6.7408,148.31,148.27,31.2422]
[1745677376837,37.33522019,148.35,148.27,31.2422]
[1745677379241,6.7409,148.3,148.27,31.2422]
[1745677381643,8.20315065,148.35,148.29,8.20315065]
[1745677381839,8.20315065,148.36,148.32,8.20315065]
[1745677382241,6.7391,148.34,148.32,8.20315065]
[1745677383644,6.7395,148.33,148.32,8.20315065]
[1745677384846,6.7392,148.34,148.32,8.20315065]
[1745677385643,6.7392,148.34,148.31,24.44]
[1745677386247,6.7392,148.34,148.31,31.1804]
[1745677386644,26.3479,148.39,148.32,12.81559583]
[1745677386851,1.9079,148.39,148.33,6.7392]
[1745677387150,6.7387,148.35,148.31,24.44]
[1745677387948,6.7392,148.34,148.31,24.44]
[1745677389252,6.7392,148.34,148.31,31.1803]
[1745677389447,6.7388,148.35,148.31,31.1803]
[1745677389954,1.9135,148.39,148.31,31.1803]
[1745677390154,1.9135,148.39,148.32,6.7399]
[1745677392358,6.7384,148.36,148.32,6.7399]
[1745677393453,1.9135,148.39,148.31,24.44]
[1745677393657,39.19129583,148.42,148.32,12.81559583]
[1745677393856,39.19129583,148.42,148.34,12.81559583]
[1745677394154,39.19129583,148.42,148.35,31.1782]
[1745677394558,6.7371,148.39,148.35,31.1782]
[1745677394756,14.75129583,148.42,148.36,6.7381]
[1745677394950,1.9357,148.42,148.36,6.7381]
[1745677395154,6.7366,148.4,148.36,6.7381]
[1745677395559,6.7366,148.4,148.37,6.7377]
[1745677395957,6.7366,148.4,148.35,24.44]
[1745677396153,14.75129583,148.42,148.35,24.44]
[1745677396553,14.75129583,148.42,148.36,6.7382]
[1745677396857,14.75129583,148.42,148.35,24.44]
[1745677397260,6.7371,148.39,148.35,24.44]
[1745677398361,6.7373,148.38,148.35,24.44]
[1745677399262,6.7369,148.39,148.35,24.44]
[1745677399466,14.75129583,148.42,148.35,24.44]
[1745677399960,6.7367,148.4,148.35,24.44]
[1745677400557,6.7367,148.4,148.36,6.7378]
[1745677400759,6.7369,148.39,148.35,24.44]
[1745677400962,14.75129583,148.42,148.35,24.44]
[1745677401164,14.75129583,148.42,148.35,31.1782]
[1745677401364,6.7372,148.39,148.35,31.1782]
[1745677401761,14.75129583,148.42,148.35,24.44]
[1745677401963,12.81559583,148.4,148.35,24.44]
[1745677403568,6.7376,148.38,148.35,24.44]
[1745677404670,12.81559583,148.4,148.35,24.44]
[1745677405267,6.7376,148.38,148.35,24.44]
[1745677406066,6.7378,148.37,148.35,24.44]
[1745677406467,12.81559583,148.4,148.35,31.1786]
[1745677407172,14.75129583,148.42,148.36,6.7381]
[1745677407467,14.75129583,148.42,148.35,24.44]
[1745677407668,6.7371,148.39,148.36,8.19771886]
[1745677408966,6.7374,148.38,148.36,8.19771886]
[1745677409271,8.19771886,148.4,148.36,8.19771886]
[1745677409570,8.19771886,148.38,148.35,24.44]
[1745677409767,8.19771886,148.36,148.32,32.63771886]
[1745677409964,6.7387,148.35,148.32,32.63771886]
[1745677410273,8.19771886,148.36,148.32,32.63771886]
[1745677410471,8.19771886,148.34,148.32,24.44]
[1745677410667,8.19771886,148.33,148.3,24.44]
[1745677410974,8.19771886,148.31,148.27,24.44]
[1745677411174,14.93931886,148.29,148.27,24.44]
[1745677411473,6.7416,148.29,148.27,24.44]
[1745677414577,14.93871886,148.3,148.27,31.1822]
[1745677416178,14.93871886,148.3,148.27,24.44]
[1745677416575,6.7414,148.29,148.27,24.44]
[1745677416984,8.19771886,148.3,148.27,24.44]
[1745677417178,8.19771886,148.28,148.24,24.44]
[1745677417383,8.19771886,148.26,148.24,24.44]
[1745677417683,6.7428,148.26,148.24,24.44]
[1745677417883,8.19771886,148.27,148.24,24.44]
[1745677418283,6.743,148.26,148.24,24.44]
[1745677418583,8.19771886,148.27,148.24,24.44]
[1745677418882,6.7427,148.26,148.24,24.44]
[1745677419779,6.7432,148.25,148.24,24.44]
[1745677419985,14.94091886,148.25,148.24,24.44]
[1745677420285,6.7445,148.22,148.2,24.44]
[1745677421288,14.94191886,148.23,148.2,24.44]
[1745677421988,6.7446,148.22,148.2,24.44]
[1745677422290,8.19771886,148.21,148.17,24.44]
[1745677422489,8.19771886,148.19,148.17,24.44]
[1745677422885,8.19771886,148.2,148.17,24.44]
[1745677423081,14.94341886,148.2,148.17,24.44]
[1745677427593,6.7459,148.19,148.17,24.44]
[1745677430596,8.19771886,148.23,148.18,8.19771886]
[1745677430894,8.19771886,148.22,148.18,8.19771886]
[1745677431594,6.7455,148.2,148.18,8.19771886]
[1745677432296,4.0093,148.28,148.19,8.19771886]
[1745677432500,4.0093,148.28,148.22,8.19771886]
[1745677432501,8.19771886,148.26,148.22,8.19771886]
[1745677432692,8.19771886,148.25,148.21,32.65771886]
[1745677432888,6.7444,148.23,148.21,32.65771886]
[1745677433099,6.7444,148.23,148.21,24.46]
[1745677433393,8.19771886,148.24,148.21,24.46]
[1745677433594,6.7445,148.22,148.21,24.46]
[1745677434001,8.19771886,148.24,148.21,24.46]
[1745677434299,6.7437,148.24,148.21,24.46]
[1745677434700,8.19771886,148.25,148.21,24.46]
[1745677434900,8.19771886,148.24,148.21,24.46]
[1745677435701,8.19771886,148.26,148.22,8.19771886]
[1745677436400,6.7435,148.25,148.22,8.19771886]
[1745677437101,6.7428,148.26,148.23,8.19771886]
[1745677437301,10.15021886,148.29,148.25,8.19771886]
[1745677437902,6.7421,148.28,148.25,32.65771886]
[1745677438403,8.19771886,148.31,148.27,8.19771886]
[1745677438800,6.7405,148.31,148.29,8.19771886]
[1745677440406,6.7409,148.3,148.29,8.19771886]
[1745677440702,6.7421,148.28,148.26,10.30391886]
[1745677440899,6.7421,148.28,148.26,8.19771886]
[1745677441699,6.7421,148.28,148.27,8.19771886]
[1745677443599,6.7421,148.28,148.25,24.46]
[1745677443804,6.7427,148.26,148.25,24.46]
[1745677446406,6.7424,148.27,148.25,24.46]
[1745677448109,6.7427,148.26,148.25,24.46]
[1745677450909,6.7424,148.27,148.25,24.46]
[1745677453210,6.7427,148.26,148.25,24.46]
[1745677453712,6.7423,148.27,148.25,24.46]
[1745677454317,4.1189,148.32,148.25,24.46]
[1745677454516,24.44,148.33,148.26,12.82538986]
[1745677454708,14.90078986,148.35,148.26,12.82538986]
[1745677454908,6.7398,148.33,148.28,12.82538986]
[1745677455109,6.7398,148.33,148.29,24.44]
[1745677455609,6.74,148.32,148.29,31.1812]
[1745677455811,14.90078986,148.35,148.29,24.44]
[1745677456009,6.7409,148.3,148.29,24.44]
[1745677456204,12.82538986,148.33,148.27,24.44]
[1745677456410,14.90078986,148.35,148.27,24.44]
[1745677456814,14.90078986,148.35,148.28,6.7418]
[1745677457117,2.0754,148.35,148.28,12.82538986]
[1745677457615,6.7396,148.33,148.29,6.7411]
[1745677457910,2.0754,148.35,148.28,12.82538986]
[1745677458107,2.0686,148.36,148.28,12.82538986]
[1745677458307,26.5438,148.39,148.27,26.3728]
[1745677458308,28.5154,148.39,148.32,12.82538986]
[1745677458512,28.5154,148.39,148.33,24.44]
[1745677458912,4.0754,148.39,148.33,24.44]
[1745677459512,6.7384,148.36,148.33,24.44]
[1745677459915,4.0754,148.39,148.33,24.44]
[1745677460913,6.7383,148.36,148.33,24.44]
[1745677461113,1.9716,148.39,148.33,24.44]